bitfinex-derivatives/quotes_BTCF0:USTF0_20250517
["timestamp","ask_amount","ask_price","bid_price","bid_amount"]
[1747507980099,1.2367518,103080.0,103070.0,0.18194033]
[1747507981002,1.2377518,103080.0,103070.0,0.18194033]
[1747507981198,1.38842944,103080.0,103070.0,0.18194033]
[1747507981590,1.38942944,103080.0,103070.0,0.18194033]
[1747507981788,1.39914934,103080.0,103070.0,0.18194033]
[1747507983904,1.40914934,103080.0,103070.0,0.21234033]
[1747507984499,1.40914934,103080.0,103070.0,0.21778249]
[1747507985706,1.40914934,103080.0,103070.0,0.18738249]
[1747507985907,1.31112459,103080.0,103070.0,0.18738249]
[1747507986515,0.95032459,103080.0,103070.0,0.18738249]
[1747507986807,1.67192459,103080.0,103070.0,0.18738249]
[1747507987401,1.70522459,103080.0,103070.0,0.18738249]
[1747507990307,1.60719984,103080.0,103070.0,0.18738249]
[1747507990508,1.70522459,103080.0,103070.0,0.21748249]
[1747507996114,0.98362459,103080.0,103070.0,0.21748249]
[1747507996414,1.70522459,103080.0,103070.0,0.21748249]
[1747507996609,0.98362459,103080.0,103070.0,0.21748249]
[1747507996810,1.70522459,103080.0,103070.0,0.21748249]
[1747508002215,1.80324934,103080.0,103070.0,0.21748249]
[1747508002412,1.59212934,103080.0,103070.0,0.21748249]
[1747508002613,1.80312934,103080.0,103070.0,0.22051538]
[1747508003121,1.80312934,103080.0,103070.0,0.21748249]
[1747508003313,1.80312934,103080.0,103070.0,0.22051538]
[1747508003514,1.49398459,103080.0,103070.0,0.22051538]
[1747508003812,1.28286459,103080.0,103070.0,0.28281538]
[1747508005304,1.28286459,103080.0,103070.0,0.25121538]
[1747508006018,1.28286459,103080.0,103070.0,0.24818249]
[1747508006211,1.28286459,103080.0,103070.0,0.25121538]
[1747508007217,1.18483984,103080.0,103070.0,0.25121538]
[1747508007519,1.39579984,103080.0,103070.0,0.25121538]
[1747508007812,1.49382459,103080.0,103070.0,0.25121538]
[1747508008025,1.49382459,103080.0,103070.0,0.25121536]
[1747508009917,0.77222459,103080.0,103070.0,0.25121536]
[1747508010218,1.49382459,103080.0,103070.0,0.25121536]
[1747508012218,1.34314695,103080.0,103070.0,0.25121536]
[1747508015519,1.64389046,103080.0,103070.0,0.25121536]
[1747508016521,1.43293046,103080.0,103070.0,0.25121536]
[1747508016818,1.28318581,103080.0,103070.0,0.50121536]
[1747508017019,1.28318581,103080.0,103070.0,0.53291536]
[1747508017319,1.38121056,103080.0,103070.0,0.53291536]
[1747508017825,1.80301056,103080.0,103070.0,0.53291536]
[1747508018015,1.38121056,103080.0,103070.0,0.72687646]
[1747508018218,1.49410581,103080.0,103070.0,0.72687646]
[1747508018417,1.64519828,103080.0,103070.0,0.72687646]
[1747508019117,1.74322303,103080.0,103070.0,0.72687646]
[1747508019317,1.07347828,103080.0,103070.0,0.82490121]
[1747508019517,1.00857828,103080.0,103070.0,0.82490121]
[1747508022323,1.00857828,103080.0,103070.0,0.82490077]
[1747508023225,1.07197828,103080.0,103070.0,0.72687602]
[1747508024210,1.07197828,103080.0,103070.0,0.72687603]
[1747508029631,1.07197828,103080.0,103070.0,0.72687606]
[1747508031026,1.07197828,103080.0,103070.0,0.82490081]
[1747508033730,1.07197828,103080.0,103070.0,0.72687606]
[1747508033927,1.10277828,103080.0,103070.0,0.72687606]
[1747508034228,1.10277828,103080.0,103070.0,0.72687608]
[1747508038029,1.20080303,103080.0,103070.0,0.72687608]
[1747508038332,1.20080303,103080.0,103070.0,0.50121498]
[1747508038722,1.29882778,103080.0,103070.0,0.44041498]
[1747508039729,1.29882778,103080.0,103070.0,0.19041498]
[1747508040531,1.29882778,103080.0,103070.0,0.19041544]
[1747508040822,1.32882778,103080.0,103070.0,0.19041544]
[1747508041026,1.32882778,103080.0,103070.0,0.18738249]
[1747508041027,1.29882778,103080.0,103070.0,0.18738249]
[1747508041228,1.51882778,103080.0,103070.0,0.18738249]
[1747508041528,1.29882778,103080.0,103070.0,0.18738249]
[1747508046832,1.14773531,103080.0,103070.0,0.18738249]
[1747508049534,1.32773531,103080.0,103070.0,0.18738249]
[1747508052741,0.96693531,103080.0,103070.0,0.18738249]
[1747508052942,1.68853531,103080.0,103070.0,0.18738249]
[1747508054438,1.49248581,103080.0,103070.0,0.18738249]
[1747508054638,1.68853531,103080.0,103070.0,0.18738249]
[1747508061146,1.49248581,103080.0,103070.0,0.18738249]
[1747508061354,1.68853531,103080.0,103070.0,0.18738249]
[1747508062850,0.96693531,103080.0,103070.0,0.18738249]
[1747508063144,1.68853531,103080.0,103070.0,0.18738249]
[1747508064739,1.73768103,103080.0,103070.0,0.22058249]
[1747508066450,1.94840103,103080.0,103070.0,0.22058249]
[1747508067854,1.61508342,103080.0,103070.0,0.22058249]
[1747508068150,1.43508342,103080.0,103070.0,0.26148249]
[1747508069051,1.31248581,103080.0,103070.0,0.26148249]
[1747508069351,1.43508342,103080.0,103070.0,0.26148249]
[1747508073251,0.71348342,103080.0,103070.0,0.26148249]
[1747508073453,1.43508342,103080.0,103070.0,0.26148249]
[1747508076248,1.55768103,103080.0,103070.0,0.26148249]
[1747508077054,1.55768103,103080.0,103070.0,0.23058249]
[1747508078155,1.82720546,103080.0,103070.0,0.23058249]
[1747508083260,1.85187802,103080.0,103070.0,0.23058249]
[1747508085152,2.06239802,103080.0,103070.0,0.23058249]
[1747508089263,1.34079802,103080.0,103070.0,0.23058249]
[1747508089456,2.06239802,103080.0,103070.0,0.23058249]
[1747508091155,1.34079802,103080.0,103070.0,0.23058249]
[1747508091358,2.06239802,103080.0,103070.0,0.23058249]
[1747508092160,2.03772546,103080.0,103070.0,0.23058249]
[1747508092565,1.31612546,103080.0,103070.0,0.23058249]
[1747508092871,2.03772546,103080.0,103070.0,0.23058249]
[1747508095768,1.31612546,103080.0,103070.0,0.23058249]
[1747508095969,2.03772546,103080.0,103070.0,0.23058249]
[1747508097167,2.03772059,103080.0,103070.0,0.23058249]
[1747508097758,2.16031333,103080.0,103070.0,0.23058249]
[1747508101164,2.06239315,103080.0,103070.0,0.23058249]
[1747508101764,1.34079315,103080.0,103070.0,0.23058249]
[1747508101969,2.06239304,103080.0,103070.0,0.23058249]
[1747508102168,2.18498567,103080.0,103070.0,0.23058249]
[1747508102668,1.93980041,103080.0,103070.0,0.23058249]
[1747508102863,1.93980041,103080.0,103070.0,0.22058249]
[1747508102864,2.19498567,103080.0,103070.0,0.22058249]
[1747508103469,2.19498567,103080.0,103070.0,0.18738249]
[1747508104166,2.06239304,103080.0,103070.0,0.18738249]
[1747508104368,2.14992041,103080.0,103070.0,0.23038249]
[1747508104571,2.27251304,103080.0,103070.0,0.26461554]
[1747508105164,2.06353614,103080.0,103070.0,0.26461554]
[1747508105469,2.48417614,103080.0,103070.0,0.23341554]
[1747508106360,2.48417614,103080.0,103070.0,0.23341546]
[1747508106859,2.48417614,103080.0,103070.0,0.23038249]
[1747508107960,2.27385614,103080.0,103070.0,0.23038249]
[1747508108157,2.48417614,103080.0,103070.0,0.23038249]
[1747508108971,2.45950358,103080.0,103070.0,0.23038249]
[1747508112876,2.12659095,103080.0,103070.0,0.23038249]
[1747508113067,2.33691095,103080.0,103070.0,0.23038249]
[1747508113268,2.45950358,103080.0,103070.0,0.23038249]
[1747508114672,1.88547095,103080.0,103070.0,0.66434369]
[1747508114877,1.88547095,103080.0,103070.0,0.73027647]
[1747508115074,2.00806358,103080.0,103070.0,0.73027647]
[1747508116575,1.7983277,103080.0,103070.0,0.73027647]
[1747508117176,1.7983277,103080.0,103070.0,0.72724369]
[1747508117377,1.8307277,103080.0,103070.0,0.72724369]
[1747508117779,1.8307277,103080.0,103070.0,0.73027635]
[1747508118772,1.4699277,103080.0,103070.0,0.73027635]
[1747508118970,1.8307277,103080.0,103070.0,0.73027635]
[1747508119768,1.8307277,103080.0,103070.0,0.28631515]
[1747508119968,1.8307277,103080.0,103070.0,0.53631515]
[1747508120679,1.8307277,103080.0,103070.0,0.5363152]
[1747508124790,1.8307277,103080.0,103070.0,0.2863152]
[1747508125080,1.8307277,103080.0,103070.0,0.25621528]
[1747508125277,1.95332033,103080.0,103070.0,0.18738249]
[1747508127780,1.95332033,103080.0,103070.0,0.1904154]
[1747508128581,1.95332033,103080.0,103070.0,0.2207154]
[1747508131577,1.95332033,103080.0,103070.0,0.22071538]
[1747508133093,1.88990358,103080.0,103070.0,0.66467648]
[1747508133385,1.55707095,103080.0,103070.0,0.69707648]
[1747508133586,1.67966358,103080.0,103070.0,0.69707648]
[1747508133786,1.67966358,103080.0,103070.0,0.72717648]
[1747508136191,1.16725697,103080.0,103070.0,0.72717648]
[1747508138386,1.16725697,103080.0,103070.0,0.23071538]
[1747508138684,1.2898496,103080.0,103070.0,0.19041538]
[1747508138895,1.3398496,103080.0,103070.0,0.19041538]
[1747508139390,1.4909169,103080.0,103070.0,0.19041538]
[1747508140690,1.4909169,103080.0,103070.0,0.19041546]
[1747508143191,1.4909169,103080.0,103070.0,0.18738249]
[1747508143996,1.7010769,103080.0,103070.0,0.18738249]
[1747508144195,1.7010769,103080.0,103070.0,0.19041541]
[1747508144994,1.4909169,103080.0,103070.0,0.19041541]
[1747508145195,1.9112769,103080.0,103070.0,0.19041541]
[1747508147886,1.9112769,103080.0,103070.0,0.18738249]
[1747508148092,1.9112769,103080.0,103070.0,0.19041537]
[1747508148496,2.2720769,103080.0,103070.0,0.19041537]
[1747508151395,1.5504769,103080.0,103070.0,0.19041537]
[1747508151598,2.2720769,103080.0,103070.0,0.19041537]
[1747508154905,2.2720769,103080.0,103070.0,0.18738249]
[1747508155093,2.02689164,103080.0,103070.0,0.18738249]
[1747508155400,2.2720769,103080.0,103070.0,0.19041536]
[1747508155598,2.1210096,103080.0,103070.0,0.22101536]
[1747508156799,2.1210096,103080.0,103070.0,0.22101538]
[1747508157203,2.1210096,103080.0,103070.0,0.21798249]
[1747508159509,1.9108496,103080.0,103070.0,0.21798249]
[1747508159807,2.1209296,103080.0,103070.0,0.21798249]
[1747508160207,1.99833697,103080.0,103070.0,0.21798249]
[1747508163005,1.94833697,103080.0,103070.0,0.21798249]
[1747508166211,2.0709296,103080.0,103070.0,0.21798249]
[1747508166916,1.3493296,103080.0,103070.0,0.21798249]
[1747508167117,2.0709296,103080.0,103070.0,0.21798249]
[1747508167308,2.0709296,103080.0,103070.0,0.22101535]
[1747508169313,1.3493296,103080.0,103070.0,0.22101535]
[1747508169521,2.0709296,103080.0,103070.0,0.22101535]
[1747508170522,1.67880756,103080.0,103070.0,0.22101535]
[1747508171826,0.95720756,103080.0,103070.0,0.22101535]
[1747508172013,1.67880756,103080.0,103070.0,0.22101535]
[1747508173216,1.55621493,103080.0,103070.0,0.22101535]
[1747508174922,1.34613493,103080.0,103070.0,0.22101535]
[1747508175114,1.55613493,103080.0,103070.0,0.22101537]
[1747508175314,1.4335423,103080.0,103070.0,0.22101537]
[1747508175515,1.55613493,103080.0,103070.0,0.22101537]
[1747508176320,0.83453493,103080.0,103070.0,0.22101537]
[1747508176515,1.55613493,103080.0,103070.0,0.22101535]
[1747508177325,0.83453493,103080.0,103070.0,0.22101535]
[1747508177520,1.55613493,103080.0,103070.0,0.22101535]
[1747508178229,0.83453493,103080.0,103070.0,0.22101535]
[1747508178429,1.55613493,103080.0,103070.0,0.22101536]
[1747508178824,1.67872756,103080.0,103070.0,0.22101536]
[1747508179219,1.55613493,103080.0,103070.0,0.22101536]
[1747508180024,0.83453493,103080.0,103070.0,0.22101536]
[1747508180327,1.55613493,103080.0,103070.0,0.22101536]
[1747508181527,1.76770575,103080.0,103070.0,0.22101536]
[1747508182023,1.76770575,103080.0,103070.0,0.22101535]
[1747508182935,1.89029838,103080.0,103070.0,0.22101535]
[1747508189432,1.89029838,103080.0,103070.0,0.2210154]
[1747508190329,1.89029838,103080.0,103070.0,0.1904154]
[1747508191936,1.89029838,103080.0,103070.0,0.19041539]
[1747508192536,1.89029838,103080.0,103070.0,0.22351539]
[1747508194534,1.90029838,103080.0,103070.0,0.22351539]
[1747508196744,1.77770575,103080.0,103070.0,0.22351539]
[1747508197345,1.05610575,103080.0,103070.0,0.22048249]
[1747508197536,1.77770575,103080.0,103070.0,0.22048249]
[1747508197736,1.90029838,103080.0,103070.0,0.22048249]
[1747508206244,1.90029838,103080.0,103070.0,0.22351543]
[1747508207444,1.90029838,103080.0,103070.0,0.19041543]
[1747508207647,1.90029838,103080.0,103070.0,0.19041542]
[1747508209750,0.1939612,103070.0,103060.0,0.0323]
[1747508209934,0.77245383,103070.0,103060.0,0.1923]
[1747508210139,0.77245383,103070.0,103060.0,0.3723]
[1747508210742,0.77245383,103070.0,103060.0,0.18]
[1747508210952,0.83245383,103070.0,103060.0,0.18]
[1747508211341,1.25193383,103070.0,103060.0,0.18]
[1747508211953,1.0693412,103070.0,103060.0,0.18]
[1747508212255,1.19193383,103070.0,103060.0,0.2119]
[1747508212445,1.40350465,103070.0,103060.0,0.2119]
[1747508215547,1.41350465,103070.0,103060.0,0.2119]
[1747508216352,1.77472871,103070.0,103040.0,0.08656682]
[1747508216650,1.03819153,103050.0,103040.0,0.11856682]
[1747508216955,1.45843103,103050.0,103040.0,0.31220477]
[1747508217254,1.45843103,103050.0,103040.0,0.36078707]
[1747508217255,1.56097805,103050.0,103040.0,0.36078707]
[1747508218157,1.56097805,103050.0,103040.0,0.36478707]
[1747508218356,1.56097805,103050.0,103040.0,0.36778707]
[1747508219942,1.56097805,103050.0,103040.0,0.2816]
[1747508221056,1.43838542,103050.0,103040.0,0.2816]
[1747508221255,1.56097805,103050.0,103040.0,0.2816]
[1747508223457,1.56101805,103050.0,103040.0,0.2816]
[1747508224759,1.56101805,103050.0,103040.0,0.28704216]
[1747508227362,1.56101805,103050.0,103040.0,0.25574216]
[1747508227661,1.56101805,103050.0,103040.0,0.22444216]
[1747508228363,2.03361068,103050.0,103040.0,0.19244216]
[1747508229666,1.65101805,103050.0,103040.0,0.19244216]
[1747508230769,0.92941805,103050.0,103040.0,0.19244216]
[1747508231068,1.65101805,103050.0,103040.0,0.19244216]
[1747508231571,1.23153805,103050.0,103040.0,0.19244216]
[1747508231868,1.35117805,103050.0,103040.0,0.19244216]
[1747508233170,1.35117805,103050.0,103040.0,0.22424216]
[1747508236383,1.56077805,103050.0,103040.0,0.23424216]
[1747508236582,1.14153805,103050.0,103040.0,0.26494216]
[1747508238382,1.29220368,103050.0,103040.0,0.26494216]
[1747508242876,1.29220368,103050.0,103040.0,0.26094216]
[1747508243082,1.29220368,103050.0,103040.0,0.26294216]
[1747508243984,1.29220368,103050.0,103040.0,0.26094216]
[1747508244891,1.16961105,103050.0,103040.0,0.26094216]
[1747508245287,1.29220368,103050.0,103040.0,0.26094216]
[1747508247479,1.16961105,103050.0,103040.0,0.26094216]
[1747508247683,1.29220368,103050.0,103040.0,0.26094216]
[1747508252495,1.35318206,103050.0,103040.0,0.26094216]
[1747508255598,1.35318206,103050.0,103040.0,0.28381216]
[1747508256293,1.23058943,103050.0,103040.0,0.28381216]
[1747508256595,1.35318206,103050.0,103040.0,0.28381216]
[1747508257799,0.63158206,103050.0,103040.0,0.28381216]
[1747508257989,1.35318206,103050.0,103040.0,0.28381216]
[1747508258898,1.56262206,103050.0,103040.0,0.28381216]
[1747508259095,1.56262206,103050.0,103040.0,0.25239847]
[1747508259292,1.77206206,103050.0,103040.0,0.25784063]
[1747508260200,1.64946943,103050.0,103040.0,0.25784063]
[1747508260497,1.77206206,103050.0,103040.0,0.25784063]
[1747508263006,1.05046206,103050.0,103040.0,0.25784063]
[1747508263203,1.77206206,103050.0,103040.0,0.25784063]
[1747508263804,1.77206206,103050.0,103040.0,0.49784063]
[1747508266705,1.64946943,103050.0,103040.0,0.49784063]
[1747508266901,1.77206206,103050.0,103040.0,0.49784063]
[1747508267298,1.05046206,103050.0,103040.0,0.46714063]
[1747508267593,1.77206206,103050.0,103040.0,0.46714063]
[1747508276608,1.77206206,103050.0,103040.0,0.46131216]
[1747508282209,1.56041805,103050.0,103040.0,0.46131216]
[1747508282804,1.56041805,103050.0,103040.0,0.47586216]
[1747508284918,1.56041805,103050.0,103040.0,0.50856216]
[1747508286300,1.43782542,103050.0,103040.0,0.50856216]
[1747508286507,1.56041805,103050.0,103040.0,0.50856216]
[1747508286713,1.43782542,103050.0,103040.0,0.50856216]
[1747508286910,1.56041805,103050.0,103040.0,0.50856216]
[1747508292516,0.83881805,103050.0,103040.0,0.50856216]
[1747508292716,1.56041805,103050.0,103040.0,0.50856216]
[1747508299428,1.43782542,103050.0,103040.0,0.50856216]
[1747508299614,1.56041805,103050.0,103040.0,0.50856216]
[1747508301525,1.22838542,103050.0,103040.0,0.70258056]
[1747508301733,1.22838542,103050.0,103040.0,0.50856216]
[1747508301734,1.56009805,103050.0,103040.0,0.50856216]
[1747508310243,1.43746542,103050.0,103040.0,0.50856216]
[1747508310446,1.56005805,103050.0,103040.0,0.50856216]
[1747508317761,1.56005805,103050.0,103040.0,0.47586216]
[1747508322260,1.43746542,103050.0,103040.0,0.47586216]
[1747508322463,1.56005805,103050.0,103040.0,0.47586216]
[1747508323356,1.43746542,103050.0,103040.0,0.47586216]
[1747508323563,1.56005805,103050.0,103040.0,0.47586216]
[1747508327255,0.83845805,103050.0,103040.0,0.47586216]
[1747508327456,1.56005805,103050.0,103040.0,0.47586216]
[1747508329065,1.43746542,103050.0,103040.0,0.47586216]
[1747508329364,1.56005805,103050.0,103040.0,0.47586216]
[1747508330565,1.43746542,103050.0,103040.0,0.47586216]
[1747508330962,1.56005805,103050.0,103040.0,0.50696216]
[1747508334463,1.43746542,103050.0,103040.0,0.50696216]
[1747508334667,1.56005805,103050.0,103040.0,0.50696216]
[1747508338770,1.56005805,103050.0,103040.0,0.22586216]
[1747508338967,1.56005805,103050.0,103040.0,0.31586216]
[1747508340064,1.55937805,103050.0,103040.0,0.31586216]
[1747508340571,1.14153805,103050.0,103040.0,0.31586216]
[1747508340772,1.55937805,103050.0,103040.0,0.37826216]
[1747508341275,1.43678542,103050.0,103040.0,0.37826216]
[1747508341477,1.55937805,103050.0,103040.0,0.37826216]
[1747508341974,1.35053805,103050.0,103040.0,0.37826216]
[1747508342174,1.55937805,103050.0,103040.0,0.37826216]
[1747508343275,1.55937805,103050.0,103040.0,0.34626216]
[1747508347479,1.55937805,103050.0,103040.0,0.11873263]
[1747508348070,1.55937805,103050.0,103040.0,0.29873263]
[1747508348382,1.55937805,103050.0,103040.0,0.30417479]
[1747508351883,1.22794542,103050.0,103040.0,0.49819329]
[1747508352075,1.43670542,103050.0,103040.0,0.30417479]
[1747508352274,1.55929805,103050.0,103040.0,0.30417479]
[1747508355379,1.01894542,103050.0,103040.0,0.49819319]
[1747508355681,0.7843595,103050.0,103040.0,0.49819319]
[1747508355982,0.7843595,103050.0,103040.0,0.68418582]
[1747508356182,0.9783591,103050.0,103040.0,0.68418582]
[1747508357186,0.9783591,103050.0,103040.0,0.56159319]
[1747508357375,1.09876516,103050.0,103040.0,0.56159319]
[1747508358184,0.37716516,103050.0,103040.0,0.56159319]
[1747508358385,0.73796516,103050.0,103040.0,0.56159319]
[1747508359083,0.73796516,103050.0,103040.0,0.57117725]
[1747508362287,0.73796516,103050.0,103040.0,0.69376988]
[1747508363584,0.73796516,103050.0,103040.0,0.68418582]
[1747508363785,0.73796516,103050.0,103040.0,0.56159319]
[1747508363992,0.73796516,103050.0,103040.0,0.57143174]
[1747508365591,0.73796516,103050.0,103040.0,0.92183174]
[1747508367090,0.37716516,103050.0,103040.0,0.92183174]
[1747508367392,0.73796516,103050.0,103040.0,0.92183174]
[1747508368891,0.6175591,103050.0,103040.0,0.91199319]
[1747508369895,0.2567591,103050.0,103040.0,0.91199319]
[1747508370089,0.6175591,103050.0,103040.0,0.91199319]
[1747508373995,0.6487591,103050.0,103040.0,0.91199319]
[1747508375095,0.7693552,103050.0,103040.0,0.91199319]
[1747508376292,0.4085552,103050.0,103040.0,0.91199319]
[1747508376491,0.7693552,103050.0,103040.0,0.91199319]
[1747508381498,0.4085552,103050.0,103040.0,0.91199319]
[1747508381690,0.7693552,103050.0,103040.0,0.91199319]
[1747508383198,0.7693552,103050.0,103040.0,0.88039319]
[1747508383501,0.7693552,103050.0,103040.0,0.91750908]
[1747508383502,0.4085552,103050.0,103040.0,0.91750908]
[1747508383791,0.7693552,103050.0,103040.0,0.91750908]
[1747508384592,0.4085552,103050.0,103040.0,0.91750908]
[1747508384791,0.7693552,103050.0,103040.0,0.91750908]
[1747508387302,0.4085552,103050.0,103040.0,0.91750908]
[1747508387600,0.7693552,103050.0,103040.0,0.91750908]
[1747508388493,0.6487591,103050.0,103040.0,0.91750908]
[1747508388700,0.79926667,103050.0,103040.0,0.91750908]
[1747508390406,0.43846667,103050.0,103040.0,0.91750908]
[1747508390705,0.79926667,103050.0,103040.0,0.91750908]
[1747508391003,0.79295742,103050.0,103040.0,0.91750908]
[1747508394396,0.43215742,103050.0,103040.0,0.91750908]
[1747508394595,0.79295742,103050.0,103040.0,0.91750908]
[1747508396606,0.79295742,103050.0,103040.0,0.91857908]
[1747508399710,0.79295742,103050.0,103040.0,0.96808057]
[1747508399907,0.43215742,103050.0,103040.0,0.96808057]
[1747508400208,0.79295742,103050.0,103040.0,0.96808057]
[1747508401099,1.27635005,103050.0,103040.0,0.90588057]
[1747508401299,1.27635005,103050.0,103040.0,0.36146217]
[1747508402010,1.60742268,103050.0,103040.0,0.36146217]
[1747508402207,1.48483005,103050.0,103040.0,0.55548057]
[1747508402702,1.48483005,103050.0,103040.0,0.36146217]
[1747508403304,1.60742268,103050.0,103040.0,0.27312954]
[1747508403809,1.81570268,103050.0,103040.0,0.27312954]
[1747508404410,1.82570268,103050.0,103040.0,0.27312954]
[1747508404609,1.67519511,103050.0,103040.0,0.27312954]
[1747508404812,1.67519511,103050.0,103030.0,0.00194109]
[1747508404813,0.1940184,103040.0,103030.0,0.00194109]
[1747508405010,0.89390366,103040.0,103030.0,0.03906141]
[1747508405314,0.89390366,103040.0,103030.0,0.21906141]
[1747508406008,0.89390366,103040.0,103030.0,0.22206141]
[1747508406514,0.9081527,103040.0,103030.0,0.22206141]
[1747508406713,1.2689527,103040.0,103030.0,0.22206141]
[1747508407317,1.2375527,103040.0,103030.0,0.22506141]
[1747508410017,1.2475527,103040.0,103030.0,0.18794109]
[1747508412009,0.5259527,103040.0,103030.0,0.18794109]
[1747508412313,1.2475527,103040.0,103030.0,0.18794109]
[1747508412718,1.6640327,103040.0,103030.0,0.18794109]
[1747508414016,1.81448187,103040.0,103030.0,0.18794109]
[1747508417508,1.84688187,103040.0,103030.0,0.18794109]
[1747508418409,1.84684187,103040.0,103030.0,0.18794109]
[1747508419319,1.84684187,103040.0,103030.0,0.19338325]
[1747508420921,2.05755248,103040.0,103030.0,0.19338325]
[1747508422821,1.51851985,103040.0,103030.0,0.38742055]
[1747508423321,1.51851985,103040.0,103030.0,0.19338325]
[1747508430535,1.36807068,103040.0,103030.0,0.19338325]
[1747508431722,1.36807068,103040.0,103030.0,0.22448325]
[1747508432726,1.49066331,103040.0,103030.0,0.22448325]
[1747508433128,1.90706331,103040.0,103030.0,0.22448325]
[1747508433330,1.49066331,103040.0,103030.0,0.22448325]
[1747508433534,1.90706331,103040.0,103030.0,0.19338325]
[1747508433928,1.45375805,103040.0,103030.0,0.38742055]
[1747508434232,1.78447068,103040.0,103030.0,0.22648325]
[1747508434824,1.65187805,103040.0,103030.0,0.43052055]
[1747508435023,1.77447068,103040.0,103030.0,0.46262055]
[1747508435228,1.35807068,103040.0,103030.0,0.46262055]
[1747508436827,1.35807068,103040.0,103030.0,0.26858325]
[1747508437027,1.35807068,103040.0,103030.0,0.22648325]
[1747508437228,1.56635068,103040.0,103030.0,0.19338325]
[1747508437629,1.68894331,103040.0,103030.0,0.19338325]
[1747508438051,1.56635068,103040.0,103030.0,0.19338325]
[1747508445146,0.85475068,103040.0,103030.0,0.19338325]
[1747508445347,1.57635068,103040.0,103030.0,0.19338325]
[1747508450553,1.36564007,103040.0,103030.0,0.19338325]
[1747508451052,1.4882327,103040.0,103030.0,0.19338325]
[1747508452354,1.4882327,103040.0,103030.0,0.19138325]
[1747508452746,1.4882327,103040.0,103030.0,0.18938325]
[1747508452949,1.24304744,103040.0,103030.0,0.18938325]
[1747508453153,1.4882327,103040.0,103030.0,0.18938325]
[1747508454146,1.24704744,103040.0,103030.0,0.18838325]
[1747508454343,1.4962327,103040.0,103030.0,0.18738325]
[1747508454548,1.2879527,103040.0,103030.0,0.18738325]
[1747508454748,1.16536007,103040.0,103030.0,0.18738325]
[1747508456060,1.04276744,103040.0,103030.0,0.18738325]
[1747508456258,1.30276744,103040.0,103030.0,0.38142055]
[1747508456457,1.63336007,103040.0,103030.0,0.48692055]
[1747508456755,1.63344007,103040.0,103030.0,0.48692055]
[1747508457452,1.63344007,103040.0,103030.0,0.47692055]
[1747508459667,1.63344007,103040.0,103030.0,0.25168325]
[1747508459963,1.63344007,103040.0,103030.0,0.18738325]
[1747508459964,1.7560327,103040.0,103030.0,0.18738325]
[1747508464176,0.1940561,103020.0,103010.0,0.03257073]
[1747508464486,0.67744873,103020.0,103010.0,0.47664563]
[1747508464688,0.77194873,103020.0,103010.0,0.47664563]
[1747508464880,0.77194873,103020.0,103010.0,0.54174563]
[1747508465079,0.92326196,103020.0,103010.0,0.54174563]
[1747508465279,0.92326196,103020.0,103010.0,0.72174563]
[1747508465480,0.80066933,103020.0,103010.0,0.72174563]
[1747508465690,0.92326196,103020.0,103010.0,0.72174563]
[1747508465989,0.92426196,103020.0,103010.0,0.72174563]
[1747508468190,0.80166933,103020.0,103010.0,0.72174563]
[1747508468579,0.80166933,103020.0,103010.0,0.84174563]
[1747508470198,0.92426196,103020.0,103010.0,0.84174563]
[1747508470793,0.80166933,103020.0,103010.0,0.84174563]
[1747508471996,0.92426196,103020.0,103010.0,0.84174563]
[1747508473893,0.92426196,103020.0,103010.0,0.80914563]
[1747508475097,1.28506196,103020.0,103010.0,0.80914563]
[1747508476692,2.28608722,103020.0,103010.0,0.43097073]
[1747508476891,0.1940749,103010.0,103000.0,0.1]
[1747508477095,0.79096753,103010.0,103000.0,0.28]
[1747508477295,1.20680753,103010.0,103000.0,0.28]
[1747508477798,1.30940016,103010.0,103000.0,0.28]
[1747508477996,0.1940936,103000.0,102990.0,0.29090423]
[1747508478204,0.6483936,103000.0,102990.0,0.47090423]
[1747508478397,0.77098623,103000.0,102990.0,0.47090423]
[1747508479311,0.81098623,103000.0,102990.0,0.47090423]
[1747508479495,0.81098623,103000.0,102990.0,0.27679183]
[1747508479696,0.93357886,103000.0,102990.0,0.27879183]
[1747508480001,0.93357886,103000.0,102990.0,0.42754697]
[1747508480002,0.89357886,103000.0,102990.0,0.42754697]
[1747508480200,0.77098623,103000.0,102990.0,0.42754697]
[1747508480800,1.18710623,103000.0,102990.0,0.42754697]
[1747508481200,1.18710623,103000.0,102990.0,0.37805444]
[1747508481402,1.18710623,103000.0,102990.0,0.37705444]
[1747508481701,1.18710623,103000.0,102990.0,0.37605444]
[1747508481995,1.18710623,103000.0,102990.0,0.18194184]
[1747508482201,1.30969886,103000.0,102990.0,0.18194184]
[1747508482901,1.31950505,103000.0,102990.0,0.18194184]
[1747508485204,1.31950505,103000.0,102990.0,0.37605444]
[1747508486409,1.44011113,103000.0,102990.0,0.37605444]
[1747508486809,1.02399113,103000.0,102990.0,0.37605444]
[1747508487005,1.43991113,103000.0,102990.0,0.37605444]
[1747508487206,1.19472587,103000.0,102990.0,0.37605444]
[1747508487408,0.9013985,103000.0,102990.0,0.37605444]
[1747508487595,0.76899968,103000.0,102990.0,0.43765444]
[1747508487800,0.18300608,103000.0,102990.0,0.59324707]
[1747508488304,0.12060608,103000.0,102990.0,1.30113907]
[1747508488807,0.12060608,103000.0,102990.0,1.85949907]
[1747508489203,0.49144648,103010.0,103000.0,0.1940938]
[1747508489404,0.49144648,103010.0,103000.0,0.37898643]
[1747508489711,0.49144648,103010.0,103000.0,0.2563938]
[1747508489911,0.52284648,103010.0,103000.0,0.2563938]
[1747508490113,0.52284648,103010.0,103000.0,0.4363938]
[1747508490412,0.44292498,103010.0,103000.0,0.55898643]
[1747508493619,0.47482498,103010.0,103000.0,0.55898643]
[1747508493819,0.83562498,103010.0,103000.0,0.55898643]
[1747508494120,0.47482498,103010.0,103000.0,0.55898643]
[1747508494527,0.47482498,103010.0,103000.0,0.56442859]
[1747508496722,0.83562498,103010.0,103000.0,0.56442859]
[1747508500938,0.47482498,103010.0,103000.0,0.56442859]
[1747508502339,0.83562498,103010.0,103000.0,0.56442859]
[1747508503138,0.39440518,103010.0,103000.0,0.56442859]
[1747508504833,0.42530518,103010.0,103000.0,0.56442859]
[1747508506645,0.42530518,103010.0,103000.0,0.91482859]
[1747508507132,0.42530518,103010.0,103000.0,0.92468482]
[1747508507540,0.42530518,103010.0,103000.0,0.91482859]
[1747508507742,0.78610518,103010.0,103000.0,0.82483596]
[1747508508038,0.81670518,103010.0,103000.0,0.94742859]
[1747508509845,0.57410608,103010.0,103000.0,0.94742859]
[1747508510041,0.40738098,103010.0,103000.0,0.94742859]
[1747508511446,0.40738098,103010.0,103000.0,0.9572284]
[1747508515049,0.40738098,103010.0,103000.0,0.83463577]
[1747508515258,0.40738098,103010.0,103000.0,0.9572284]
[1747508518245,0.40738098,103010.0,103000.0,0.9268284]
[1747508519050,0.40738098,103010.0,103000.0,0.91702859]
[1747508519251,0.40738098,103010.0,103000.0,1.12494859]
[1747508519549,0.76818098,103010.0,103000.0,1.12494859]
[1747508520154,0.76818098,103010.0,103000.0,1.00235596]
[1747508520651,0.76915082,103010.0,103000.0,1.12494859]
[1747508521054,0.92046405,103010.0,103000.0,0.91702859]
[1747508521850,0.92046405,103010.0,103000.0,0.96652112]